fUST/lending_fUST_20250627
["ID","MTS","AMOUNT","RATE_DAILY","PERIOD"]
[368017288,1750993844745,-1000.0,0.00020555,2]
[368017290,1750993844756,-5491.92,0.000206,2]
[368017292,1750993844767,-151.0,0.000206,2]
[368017295,1750993844777,-151.0,0.000206,2]
[368017297,1750993844786,-151.0,0.000206,2]
[368017299,1750993844797,-151.0,0.000207,4]
[368017301,1750993844806,-650.79598547,0.00020714,2]
[368017303,1750993844815,-6029.2245673,0.00020728,3]
[368017305,1750993844825,-218.061987,0.00020728,2]
[368017307,1750993844834,-151.0,0.00020728,2]
[368017308,1750993844843,-151.0,0.00020728,2]
[368017311,1750993844853,-1670.32,0.00020812,3]
[368017312,1750993844862,-2087.92,0.00020812,3]
[368017314,1750993844872,-1043.96,0.00020812,3]
[368017316,1750993844881,-521.98,0.00020812,3]
[368017318,1750993844894,-460.0,0.00020821,2]
[368017320,1750993844904,-460.0,0.00020821,2]
[368017322,1750993844913,-460.0,0.00020821,2]
[368017324,1750993844922,-460.0,0.00020821,2]
[368017326,1750993844932,-460.0,0.00020821,2]
[368017328,1750993844941,-460.0,0.00020821,2]
[368017330,1750993844950,-460.0,0.00020821,2]
[368017332,1750993844960,-460.0,0.00020821,2]
[368017335,1750993844969,-460.0,0.00020821,2]
[368017337,1750993844979,-460.0,0.00020821,2]
[368017339,1750993844988,-728.52,0.00020821,2]
[368017341,1750993844997,-460.0,0.00020821,2]
[368017343,1750993845008,-460.0,0.00020821,2]
[368017345,1750993845018,-460.0,0.00020821,2]
[368017347,1750993845027,-460.0,0.00020821,2]
[368017349,1750993845036,-151.0,0.00020821,2]
[368017351,1750993845045,-460.0,0.00020821,2]
[368017353,1750993845054,-151.0,0.00020821,2]
[368017354,1750993845063,-151.0,0.00020821,2]
[368017356,1750993845073,-151.0,0.00020821,2]
[368017359,1750993845084,-460.0,0.00020821,2]
[368017361,1750993845093,-1365.31,0.00020821,2]
[368017363,1750993845103,-151.0,0.00020821,2]
[368017365,1750993845112,-460.0,0.00020821,2]
[368017367,1750993845122,-151.0,0.00020821,2]
[368017369,1750993845131,-460.0,0.00020821,2]
[368017371,1750993845140,-460.0,0.00020821,2]
[368017372,1750993845150,-151.0,0.00020821,2]
[368017373,1750993845159,-151.0,0.00020821,2]
[368017374,1750993845168,-151.0,0.00020821,2]
[368017375,1750993845177,-155.656594,0.00020821,2]
[368017376,1750993845187,-151.0,0.00020821,2]
[368017377,1750993845195,-460.0,0.00020821,2]
[368017378,1750993845205,-151.0,0.00020821,2]
[368017379,1750993845214,-151.0,0.00020821,2]
[368017380,1750993845223,-460.0,0.00020821,2]
[368017381,1750993845232,-151.0,0.00020821,2]
[368017382,1750993845241,-552.13,0.00020821,2]
[368017383,1750993845250,-760.17,0.00020821,2]
[368017384,1750993845260,-460.0,0.00020821,2]
[368017385,1750993845269,-455.23396,0.00020821,2]
[368017386,1750993845279,-455.23396,0.00020821,2]
[368017387,1750993845288,-151.0,0.00020821,2]
[368017388,1750993845298,-507.55193582,0.00020821,2]
[368017389,1750993845308,-151.0,0.00020821,2]
[368017390,1750993845318,-460.0,0.00020821,2]
[368017391,1750993845327,-3614.19,0.00020821,2]
[368017392,1750993845336,-151.0,0.00020821,2]
[368017393,1750993845346,-809.98,0.00020821,2]
[368017394,1750993845355,-460.0,0.00020821,2]
[368017395,1750993845364,-460.0,0.00020821,2]
[368017396,1750993845374,-623.74,0.00020821,2]
[368017397,1750993845383,-1358.43,0.00020821,2]
[368017398,1750993845392,-460.0,0.00020821,2]
[368017399,1750993845402,-460.0,0.00020821,2]
[368017401,1750993845411,-574.34,0.00020821,2]
[368017403,1750993845420,-673.03,0.00020821,2]
[368017404,1750993845429,-460.0,0.00020821,2]
[368017406,1750993845438,-460.0,0.00020821,2]
[368017408,1750993845448,-879.15,0.00020821,2]
[368017409,1750993845457,-1444.88,0.00020821,2]
[368017410,1750993845466,-151.0,0.00020821,2]
[368017411,1750993845476,-304.56734399,0.00020821,2]
[368017412,1750993845485,-151.0,0.00020821,2]
[368017413,1750993845495,-735.15,0.00020821,2]
[368017414,1750993845505,-460.0,0.00020821,2]
[368017415,1750993845515,-460.0,0.00020821,2]
[368017416,1750993845524,-226.652773,0.00020821,2]
[368017417,1750993845533,-1769.59,0.00020821,2]
[368017418,1750993845542,-226.652773,0.00020821,2]
[368017419,1750993845551,-828.44,0.00020821,2]
[368017420,1750993845561,-460.0,0.00020821,2]
[368017421,1750993845571,-460.0,0.00020821,2]
[368017422,1750993845580,-619.94,0.00020821,2]
[368017423,1750993845590,-475.92,0.00020821,2]
[368017425,1750993845600,-460.0,0.00020821,2]
[368017426,1750993845609,-1031.34,0.00020821,2]
[368017427,1750993845619,-460.0,0.00020821,2]
[368017428,1750993845628,-1679.36,0.00020821,2]
[368017429,1750993845638,-503.74,0.00020821,2]
[368017431,1750993845648,-460.0,0.00020821,2]
[368017432,1750993845657,-1000.09,0.00020821,2]
[368017433,1750993845666,-1715.73,0.00020821,2]
[368017434,1750993845677,-460.0,0.00020821,2]
[368017435,1750993845687,-466.93,0.00020821,2]
[368017436,1750993845696,-555.13,0.00020821,2]
[368017437,1750993845705,-2909.1,0.00020821,2]
[368017438,1750993845715,-856.07,0.00020821,2]
[368017439,1750993845726,-639.15,0.00020821,2]
[368017440,1750993845734,-460.0,0.00020821,2]
[368017441,1750993845744,-1462.247868,0.00020821,2]
[368017442,1750993845754,-1462.247868,0.00020821,2]
[368017443,1750993845763,-460.0,0.00020821,2]
[368017444,1750993845774,-151.0,0.00020821,2]
[368017445,1750993845783,-648.7,0.00020821,2]
[368017446,1750993845792,-1295.71,0.00020821,2]
[368017447,1750993845801,-268.190197,0.00020821,2]
[368017448,1750993845810,-460.0,0.00020821,2]
[368017449,1750993845819,-460.0,0.00020821,2]
[368017450,1750993845828,-268.190197,0.00020821,2]
[368017451,1750993845838,-2225.69,0.00020821,2]
[368017452,1750993845847,-906.19,0.00020821,2]
[368017453,1750993845857,-2569.75,0.00020821,2]
[368017454,1750993845866,-460.0,0.00020821,2]
[368017455,1750993845876,-804.78,0.00020821,2]
[368017456,1750993845885,-460.0,0.00020821,2]
[368017457,1750993845895,-460.0,0.00020821,2]
[368017458,1750993845905,-874.44,0.00020821,2]
[368017459,1750993845914,-460.0,0.00020821,2]
[368017460,1750993845924,-2666.41,0.00020821,2]
[368017461,1750993845933,-699.76,0.00020821,2]
[368017462,1750993845942,-851.37,0.00020821,2]
[368017464,1750993845952,-460.0,0.00020821,2]
[368017465,1750993845962,-460.0,0.00020821,2]
[368017466,1750993845973,-151.0,0.00020821,2]
[368017467,1750993845982,-193.527427,0.00020821,2]
[368017468,1750993845991,-151.0,0.00020821,2]
[368017469,1750993846001,-460.0,0.00020821,2]
[368017471,1750993846011,-460.0,0.00020821,2]
[368017473,1750993846020,-460.0,0.00020821,2]
[368017475,1750993846031,-460.0,0.00020821,2]
[368017476,1750993846041,-460.0,0.00020821,2]
[368017477,1750993846051,-1321.99,0.00020821,2]
[368017478,1750993846061,-779.38,0.00020821,2]
[368017479,1750993846070,-460.0,0.00020821,2]
[368017480,1750993846080,-1808.0,0.00020821,2]
[368017481,1750993846090,-677.46,0.00020821,2]
[368017482,1750993846099,-2316.58,0.00020821,2]
[368017483,1750993846109,-4012.69,0.00020821,2]
[368017484,1750993846118,-555.6,0.00020821,2]
[368017485,1750993846128,-1500.0,0.00020833,2]
[368017486,1750993846138,-520.32878369,0.00020833,2]
[368017487,1750993846147,-504.0,0.00020898,2]
[368017488,1750993846157,-420.0,0.00020899,2]
[368017490,1750993846167,-151.0,0.000209,3]
[368017491,1750993846279,-6029.2245673,0.00020934,4]
[368017492,1750993846302,-205.0,0.00020958,2]
[368017493,1750993846312,-6932.90631914,0.00021,2]
[368017494,1750993846322,-159.959375,0.00021,2]
[368017495,1750993846331,-151.0,0.00021,4]
[368017496,1750993846341,-44312.3216454,0.00021,2]
[368017497,1750993846351,-245.065136,0.00021,2]
[368017498,1750993846360,-151.0,0.00021,2]
[368017499,1750993846371,-151.598614,0.00021,2]
[368017500,1750993846380,-151.0,0.00021,2]
[368017501,1750993846389,-151.0,0.00021,2]
[368017502,1750993846399,-151.0,0.00021,2]
[368017503,1750993846408,-153.199325,0.00021,2]
[368017504,1750993846418,-151.0,0.00021,2]
[368017505,1750993846427,-205.0,0.00021012,2]
[368017506,1750993846436,-417.894,0.00021075,2]
[368017507,1750993846446,-460.0,0.00021095,2]
[368017508,1750993846455,-460.0,0.00021095,2]
[368017509,1750993846465,-460.0,0.00021095,2]
[368017510,1750993846475,-460.0,0.00021095,2]
[368017512,1750993846485,-460.0,0.00021095,2]
[368017513,1750993846495,-460.0,0.00021095,2]
[368017514,1750993846505,-460.0,0.00021095,2]
[368017515,1750993846514,-460.0,0.00021095,2]
[368017516,1750993846524,-460.0,0.00021095,2]
[368017517,1750993846534,-460.0,0.00021095,2]
[368017518,1750993846544,-728.52,0.00021095,2]
[368017519,1750993846554,-460.0,0.00021095,2]
[368017520,1750993846564,-305.8477809,0.00021095,2]
[368017521,1750993846573,-460.0,0.00021095,2]
[368017522,1750993846583,-460.0,0.00021095,2]
[368017523,1750993846593,-460.0,0.00021095,2]
[368017524,1750993846603,-460.0,0.00021095,2]
[368017525,1750993846613,-1365.31,0.00021095,2]
[368017526,1750993846623,-460.0,0.00021095,2]
[368017527,1750993846632,-460.0,0.00021095,2]
[368017528,1750993846642,-460.0,0.00021095,2]
[368017529,1750993846651,-460.0,0.00021095,2]
[368017530,1750993846661,-460.0,0.00021095,2]
[368017531,1750993846671,-552.13,0.00021095,2]
[368017532,1750993846681,-760.17,0.00021095,2]
[368017533,1750993846691,-460.0,0.00021095,2]
[368017534,1750993846701,-460.0,0.00021095,2]
[368017535,1750993846710,-3614.19,0.00021095,2]
[368017536,1750993846721,-809.98,0.00021095,2]
[368017537,1750993846730,-460.0,0.00021095,2]
[368017538,1750993846740,-460.0,0.00021095,2]
[368017539,1750993846750,-623.74,0.00021095,2]
[368017540,1750993846760,-1358.43,0.00021095,2]
[368017541,1750993846771,-460.0,0.00021095,2]
[368017542,1750993846780,-460.0,0.00021095,2]
[368017543,1750993846790,-574.34,0.00021095,2]
[368017544,1750993846800,-673.03,0.00021095,2]
[368017545,1750993846809,-460.0,0.00021095,2]
[368017546,1750993846818,-460.0,0.00021095,2]
[368017547,1750993846828,-879.15,0.00021095,2]
[368017548,1750993846837,-1444.88,0.00021095,2]
[368017549,1750993846848,-735.15,0.00021095,2]
[368017550,1750993846857,-460.0,0.00021095,2]
[368017551,1750993846867,-516.11418213,0.00021095,2]
[368017552,1750993846876,-1160.65573069,0.00021095,2]
[368017554,1750993847045,-608.93426931,0.00021095,2]
[368017555,1750993847055,-828.44,0.00021095,2]
[368017556,1750993847065,-460.0,0.00021095,2]
[368017557,1750993847074,-460.0,0.00021095,2]
[368017558,1750993847083,-619.94,0.00021095,2]
[368017559,1750993847092,-475.92,0.00021095,2]
[368017560,1750993847101,-460.0,0.00021095,2]
[368017561,1750993847111,-1031.34,0.00021095,2]
[368017562,1750993847120,-460.0,0.00021095,2]
[368017563,1750993847130,-1679.36,0.00021095,2]
[368017564,1750993847139,-503.74,0.00021095,2]
[368017565,1750993847148,-460.0,0.00021095,2]
[368017566,1750993847158,-1000.09,0.00021095,2]
[368017567,1750993847167,-1715.73,0.00021095,2]
[368017568,1750993847176,-460.0,0.00021095,2]
[368017569,1750993847186,-466.93,0.00021095,2]
[368017570,1750993847195,-555.13,0.00021095,2]
[368017571,1750993847204,-2909.1,0.00021095,2]
[368017572,1750993847213,-856.07,0.00021095,2]
[368017573,1750993847222,-639.15,0.00021095,2]
[368017574,1750993847231,-460.0,0.00021095,2]
[368017575,1750993847240,-460.0,0.00021095,2]
[368017576,1750993847249,-648.7,0.00021095,2]
[368017577,1750993847258,-1295.71,0.00021095,2]
[368017578,1750993847268,-268.190197,0.00021095,2]
[368017579,1750993847277,-460.0,0.00021095,2]
[368017580,1750993847287,-460.0,0.00021095,2]
[368017581,1750993847297,-268.190197,0.00021095,2]
[368017582,1750993847306,-2225.69,0.00021095,2]
[368017583,1750993847315,-906.19,0.00021095,2]
[368017584,1750993847324,-2569.75,0.00021095,2]
[368017585,1750993847334,-460.0,0.00021095,2]
[368017586,1750993847343,-804.78,0.00021095,2]
[368017587,1750993847353,-571.68941473,0.00021095,2]
[368017588,1750993847362,-460.0,0.00021095,2]
[368017589,1750993847371,-874.44,0.00021095,2]
[368017590,1750993847380,-460.0,0.00021095,2]
[368017591,1750993847389,-2666.41,0.00021095,2]
[368017592,1750993847398,-699.76,0.00021095,2]
[368017593,1750993847408,-851.37,0.00021095,2]
[368017594,1750993847417,-460.0,0.00021095,2]
[368017595,1750993847426,-460.0,0.00021095,2]
[368017596,1750993847435,-151.0,0.00021095,2]
[368017597,1750993847445,-151.0,0.00021095,2]
[368017598,1750993847455,-460.0,0.00021095,2]
[368017599,1750993847464,-460.0,0.00021095,2]
[368017600,1750993847474,-460.0,0.00021095,2]
[368017601,1750993847482,-151.0,0.00021095,2]
[368017602,1750993847492,-460.0,0.00021095,2]
[368017603,1750993847501,-460.0,0.00021095,2]
[368017604,1750993847511,-1321.99,0.00021095,2]
[368017605,1750993847522,-779.38,0.00021095,2]
[368017606,1750993847531,-151.0,0.00021095,2]
[368017607,1750993847540,-151.0,0.00021095,2]
[368017608,1750993847549,-460.0,0.00021095,2]
[368017609,1750993847559,-1808.0,0.00021095,2]
[368017610,1750993847568,-677.46,0.00021095,2]
[368017611,1750993847577,-2316.58,0.00021095,2]
[368017612,1750993847587,-4012.69,0.00021095,2]
[368017613,1750993847596,-555.6,0.00021095,2]
[368017614,1750993847606,-151.0,0.000211,3]
[368017615,1750993847616,-151.0,0.000211,3]
[368017616,1750993847625,-326.65798317,0.00021103,2]
[368017617,1750993847635,-600.0,0.0002112,2]
[368017618,1750993847643,-6029.2245673,0.00021141,4]
[368017619,1750993847653,-205.0,0.0002117,2]
[368017620,1750993847662,-151.0,0.000212,4]
[368017621,1750993847672,-151.0,0.000212,4]
[368017622,1750993847681,-166.08289692,0.00021205,2]
[368017623,1750993847691,-729.943,0.00021274,2]
[368017624,1750993847701,-168.0,0.00021276,2]
[368017625,1750993847711,-520.32878369,0.00021327,2]
[368017626,1750993847720,-600.0,0.0002134,2]
[368017627,1750993847730,-6029.2245673,0.00021348,5]
[368017628,1750993847739,-460.0,0.00021369,2]
[368017629,1750993847748,-460.0,0.00021369,2]
[368017630,1750993847758,-460.0,0.00021369,2]
[368017631,1750993847768,-460.0,0.00021369,2]
[368017632,1750993847777,-151.98456,0.00021369,2]
[368017633,1750993847786,-151.0,0.00021369,2]
[368017634,1750993847795,-460.0,0.00021369,2]
[368017635,1750993847804,-274.29324264,0.00021369,2]
[368017636,1750993847813,-152.379194,0.00021369,2]
[368017637,1750993847823,-460.0,0.00021369,2]
[368017638,1750993847832,-460.0,0.00021369,2]
[368017639,1750993847841,-460.0,0.00021369,2]
[368017640,1750993847850,-460.0,0.00021369,2]
[368017641,1750993847859,-728.52,0.00021369,2]
[368017642,1750993847868,-460.0,0.00021369,2]
[368017643,1750993847878,-460.0,0.00021369,2]
[368017644,1750993847887,-460.0,0.00021369,2]
[368017645,1750993847901,-151.0,0.00021369,2]
[368017646,1750993847910,-460.0,0.00021369,2]
[368017647,1750993847920,-269.201622,0.00021369,2]
[368017648,1750993847930,-460.0,0.00021369,2]
[368017649,1750993847939,-1365.31,0.00021369,2]
[368017650,1750993847949,-151.0,0.00021369,2]
[368017651,1750993847958,-460.0,0.00021369,2]
[368017652,1750993847967,-460.0,0.00021369,2]
[368017653,1750993847977,-460.0,0.00021369,2]
[368017654,1750993847987,-151.0,0.00021369,2]
[368017655,1750993847996,-151.0,0.00021369,2]
[368017656,1750993848005,-151.0,0.00021369,2]
[368017657,1750993848015,-151.0,0.00021369,2]
[368017658,1750993848026,-460.0,0.00021369,2]
[368017659,1750993848036,-195.206695,0.00021369,2]
[368017660,1750993848046,-151.0,0.00021369,2]
[368017661,1750993848056,-460.0,0.00021369,2]
[368017662,1750993848066,-182.760651,0.00021369,2]
[368017663,1750993848075,-552.13,0.00021369,2]
[368017664,1750993848084,-760.17,0.00021369,2]
[368017665,1750993848094,-460.0,0.00021369,2]
[368017666,1750993848104,-455.23396,0.00021369,2]
[368017667,1750993848113,-455.23396,0.00021369,2]
[368017668,1750993848123,-151.0,0.00021369,2]
[368017669,1750993848132,-151.0,0.00021369,2]
[368017670,1750993848142,-460.0,0.00021369,2]
[368017671,1750993848151,-3614.19,0.00021369,2]
[368017672,1750993848160,-151.0,0.00021369,2]
[368017673,1750993848168,-809.98,0.00021369,2]
[368017674,1750993848177,-460.0,0.00021369,2]
[368017675,1750993848186,-151.0,0.00021369,2]
[368017676,1750993848195,-460.0,0.00021369,2]
[368017677,1750993848204,-623.74,0.00021369,2]
[368017678,1750993848214,-1358.43,0.00021369,2]
[368017679,1750993848223,-460.0,0.00021369,2]
[368017680,1750993848231,-460.0,0.00021369,2]
[368017681,1750993848240,-574.34,0.00021369,2]
[368017682,1750993848249,-673.03,0.00021369,2]
[368017683,1750993848259,-460.0,0.00021369,2]
[368017684,1750993848268,-879.15,0.00021369,2]
[368017685,1750993848277,-1444.88,0.00021369,2]
[368017686,1750993848286,-151.0,0.00021369,2]
[368017687,1750993848295,-151.0,0.00021369,2]
[368017688,1750993848304,-735.15,0.00021369,2]
[368017689,1750993848312,-460.0,0.00021369,2]
[368017690,1750993848321,-226.652773,0.00021369,2]
[368017691,1750993848330,-1769.59,0.00021369,2]
[368017692,1750993848339,-226.652773,0.00021369,2]
[368017693,1750993848348,-828.44,0.00021369,2]
[368017694,1750993848357,-460.0,0.00021369,2]
[368017695,1750993848367,-460.0,0.00021369,2]
[368017696,1750993848375,-619.94,0.00021369,2]
[368017697,1750993848385,-475.92,0.00021369,2]
[368017698,1750993848393,-460.0,0.00021369,2]
[368017699,1750993848403,-1031.34,0.00021369,2]
[368017700,1750993848412,-460.0,0.00021369,2]
[368017701,1750993848422,-1679.36,0.00021369,2]
[368017702,1750993848430,-503.74,0.00021369,2]
[368017703,1750993848439,-460.0,0.00021369,2]
[368017704,1750993848448,-151.0,0.00021369,2]
[368017705,1750993848457,-1000.09,0.00021369,2]
[368017706,1750993848467,-1715.73,0.00021369,2]
[368017707,1750993848479,-213.996446,0.00021369,2]
[368017708,1750993848487,-460.0,0.00021369,2]
[368017709,1750993848495,-466.93,0.00021369,2]
[368017710,1750993848504,-555.13,0.00021369,2]
[368017711,1750993848511,-2909.1,0.00021369,2]
[368017712,1750993848520,-856.07,0.00021369,2]
[368017713,1750993848529,-639.15,0.00021369,2]
[368017714,1750993848539,-460.0,0.00021369,2]
[368017715,1750993848549,-1462.247868,0.00021369,2]
[368017716,1750993848559,-1462.247868,0.00021369,2]
[368017717,1750993848568,-460.0,0.00021369,2]
[368017718,1750993848577,-648.7,0.00021369,2]
[368017719,1750993848587,-1295.71,0.00021369,2]
[368017720,1750993848596,-460.0,0.00021369,2]
[368017721,1750993848605,-460.0,0.00021369,2]
[368017722,1750993848615,-2225.69,0.00021369,2]
[368017723,1750993848625,-906.19,0.00021369,2]
[368017724,1750993848635,-2569.75,0.00021369,2]
[368017725,1750993848644,-460.0,0.00021369,2]
[368017726,1750993848654,-804.78,0.00021369,2]
[368017727,1750993848664,-460.0,0.00021369,2]
[368017728,1750993848673,-874.44,0.00021369,2]
[368017729,1750993848682,-460.0,0.00021369,2]
[368017730,1750993848692,-2666.41,0.00021369,2]
[368017731,1750993848701,-699.76,0.00021369,2]
[368017732,1750993848710,-851.37,0.00021369,2]
[368017733,1750993848720,-460.0,0.00021369,2]
[368017734,1750993848732,-460.0,0.00021369,2]
[368017735,1750993848745,-460.0,0.00021369,2]
[368017736,1750993848755,-460.0,0.00021369,2]
[368017737,1750993848763,-460.0,0.00021369,2]
[368017738,1750993848771,-460.0,0.00021369,2]
[368017739,1750993848780,-460.0,0.00021369,2]
[368017740,1750993848913,-1321.99,0.00021369,2]
[368017741,1750993848921,-779.38,0.00021369,2]
[368017742,1750993848929,-460.0,0.00021369,2]
[368017743,1750993848938,-1808.0,0.00021369,2]
[368017744,1750993848945,-677.46,0.00021369,2]
[368017745,1750993848954,-2316.58,0.00021369,2]
[368017746,1750993848962,-4012.69,0.00021369,2]
[368017747,1750993848971,-555.6,0.00021369,2]
[368017748,1750993848978,-160.0,0.00021372,3]
[368017749,1750993848986,-215.0738,0.00021377,2]
[368017750,1750993848996,-788.71019479,0.00021381,2]
[368017751,1750993849005,-151.0,0.000214,3]
[368017752,1750993849015,-151.0,0.000214,4]
[368017753,1750993849024,-151.0,0.000214,4]
[368017754,1750993849034,-151.0,0.000214,4]
[368017755,1750993849043,-27864.12474352,0.00021407,2]
[368017756,1750993849053,-127857.75439241,0.00021427,2]
[368017757,1750993849062,-151.0,0.00021427,2]
[368017758,1750993849072,-151.0,0.00021427,2]
[368017759,1750993849082,-151.0,0.00021427,2]
[368017760,1750993849091,-151.0,0.00021427,2]
[368017761,1750993849100,-151.0,0.00021427,2]
[368017762,1750993849109,-224.74916,0.00021427,2]
[368017763,1750993849119,-151.0,0.00021427,2]
[368017764,1750993849129,-151.0,0.00021427,2]
[368017765,1750993849146,-151.0,0.00021427,2]
[368017766,1750993849155,-151.0,0.00021427,2]
[368017767,1750993849165,-151.0,0.00021427,2]
[368017768,1750993849174,-151.0,0.00021427,2]
[368017769,1750993849184,-151.0,0.00021427,2]
[368017770,1750993849193,-205.07709,0.00021427,2]
[368017771,1750993849202,-151.0,0.00021427,2]
[368017772,1750993849211,-151.0,0.00021427,2]
[368017773,1750993849221,-151.0,0.00021427,2]
[368017774,1750993849230,-455.23396,0.00021427,2]
[368017775,1750993849240,-455.23396,0.00021427,2]
[368017776,1750993849249,-268.190197,0.00021427,2]
[368017777,1750993849258,-268.190197,0.00021427,2]
[368017778,1750993849269,-151.0,0.00021427,2]
[368017779,1750993849278,-151.0,0.00021427,2]
[368017780,1750993849288,-151.0,0.00021427,2]
[368017781,1750993849297,-151.0,0.00021427,2]
[368017782,1750993849307,-184.51473537,0.00021479,2]
[368017783,1750993849317,-184.51473537,0.00021479,2]
[368017784,1750993849326,-166.08289692,0.00021479,2]
[368017785,1750993849337,-151.0,0.00021493,2]
[368017786,1750993849347,-151.0,0.00021493,2]
[368017787,1750993849356,-151.0,0.00021493,2]
[368017788,1750993849365,-150.0,0.00021493,2]
[368017789,1750993849374,-150.115,0.00021493,2]
[368017790,1750993849384,-150.115,0.00021493,2]
[368017791,1750993849394,-150.0,0.00021493,2]
[368017792,1750993849403,-150.165,0.00021493,2]
[368017793,1750993849413,-150.0,0.00021493,2]
[368017794,1750993849423,-204.312,0.00021493,2]
[368017795,1750993849432,-217.181,0.00021493,2]
[368017796,1750993849441,-970.936,0.00021493,2]
[368017797,1750993849450,-654.0,0.00021493,2]
[368017798,1750993849459,-2166.837,0.00021493,2]
[368017799,1750993849469,-12485.39936487,0.000215,2]
[368017800,1750993849478,-151.0,0.000215,2]
[368017801,1750993849487,-151.0,0.000215,2]
[368017802,1750993849497,-151.0,0.000215,2]
[368017803,1750993849506,-151.0,0.000215,2]
[368017804,1750993849515,-151.0,0.000215,2]
[368017805,1750993849524,-226.652773,0.000215,2]
[368017806,1750993849532,-226.652773,0.000215,2]
[368017807,1750993849541,-1462.247868,0.000215,2]
[368017808,1750993849550,-1462.247868,0.000215,2]
[368017809,1750993849558,-205.0,0.00021509,2]
[368017810,1750993849567,-160.0,0.00021513,4]
[368017811,1750993849575,-650.79598547,0.00021532,2]
[368017812,1750993849584,-6029.2245673,0.00021555,5]
[368017813,1750993849593,-1283.335004,0.0002156,4]
[368017814,1750993849601,-600.0,0.0002156,2]
[368017815,1750993849609,-366.0585355,0.0002158,2]
[368017816,1750993849617,-366.0585355,0.0002158,2]
[368017817,1750993849626,-366.0585355,0.0002158,2]
[368017818,1750993849634,-205.0,0.00021589,2]
[368017819,1750993849643,-205.0,0.00021592,2]
[368017820,1750993849653,-1686.69,0.00021616,2]
[368017821,1750993849661,-1686.69,0.00021616,2]
[368017822,1750993849670,-1686.69,0.00021616,2]
[368017823,1750993849678,-1686.69,0.00021616,2]
[368017824,1750993849686,-1686.69,0.00021616,2]
[368017825,1750993849694,-1686.69,0.00021616,2]
[368017826,1750993849702,-1686.69,0.00021616,2]
[368017827,1750993849710,-1686.69,0.00021616,2]
[368017828,1750993849719,-1686.69,0.00021616,2]
[368017829,1750993849727,-1686.69,0.00021616,2]
[368017830,1750993849736,-1686.69,0.00021616,2]
[368017831,1750993849745,-1686.69,0.00021616,2]
[368017832,1750993849755,-1686.69,0.00021616,2]
[368017833,1750993849764,-1686.69,0.00021616,2]
[368017834,1750993849774,-1686.69,0.00021616,2]
[368017835,1750993849783,-1686.69,0.00021616,2]
[368017836,1750993849793,-1686.69,0.00021616,2]
[368017837,1750993849802,-1686.69,0.00021616,2]
[368017838,1750993849811,-1686.69,0.00021616,2]
[368017839,1750993849820,-1686.69,0.00021616,2]
[368017840,1750993849829,-1686.69,0.00021616,2]
[368017841,1750993849838,-1686.69,0.00021616,2]
[368017842,1750993849848,-1686.69,0.00021616,2]